bitfinex/quotes_ETHUSD_20250505
["timestamp","ask_amount","ask_price","bid_price","bid_amount"]
[1746455857552,5.52862907,1808.8,1808.7,5.97110155]
[1746455857754,5.52834621,1808.9,1808.7,5.97110155]
[1746455857959,5.52834621,1808.9,1808.8,0.59711016]
[1746455858625,5.52834621,1808.9,1808.8,1.36771016]
[1746455860157,5.52834621,1808.9,1808.8,1.7940072]
[1746455860677,5.52813012,1809.0,1808.8,1.7940072]
[1746455860973,11.05630033,1809.0,1808.8,1.7940072]
[1746455861271,5.52822157,1808.9,1808.8,1.7940072]
[1746455861672,5.52813012,1809.0,1808.8,1.7940072]
[1746455861974,5.52735238,1809.2,1809.0,0.8282]
[1746455862274,5.52735238,1809.2,1809.1,5.97110155]
[1746455862472,5.52735238,1809.2,1809.1,6.65103171]
[1746455863850,5.52735238,1809.2,1809.1,0.67993016]
[1746455864048,5.52761041,1809.1,1809.0,0.8282]
[1746455864587,5.52761041,1809.1,1808.9,8.97110155]
[1746455864588,5.52791597,1809.0,1808.9,8.97110155]
[1746455867352,5.52791597,1809.0,1808.9,3.0]
[1746455867559,5.52791597,1809.0,1808.9,8.97110155]
[1746455869282,5.52761041,1809.1,1808.9,8.97110155]
[1746455869451,5.52791597,1809.0,1808.9,10.54302243]
[1746455870254,5.52878737,1808.8,1808.6,3.8278]
[1746455870480,5.52834839,1808.9,1808.8,3.0]
[1746455870696,5.52805154,1809.0,1808.8,3.0]
[1746455870896,5.52771517,1809.1,1808.9,5.97110155]
[1746455871056,5.52771517,1809.1,1809.0,0.8278]
[1746455871252,5.52791597,1809.0,1808.9,8.97110155]
[1746455871550,5.52791597,1809.0,1808.9,9.94470171]
[1746455871751,5.52742807,1809.2,1809.0,3.0]
[1746455872073,5.52742807,1809.2,1809.1,8.97110155]
[1746455872863,5.52742807,1809.2,1809.1,3.0]
[1746455873855,5.52791597,1809.0,1808.9,3.97360016]
[1746455874113,5.52774698,1809.1,1808.9,9.94470171]
[1746455874293,5.52745908,1809.2,1809.0,0.99447017]
[1746455874490,5.526848,1809.4,1809.2,3.0]
[1746455874648,5.526848,1809.4,1809.3,8.97110155]
[1746455875397,5.52653923,1809.5,1809.3,8.97110155]
[1746455875398,5.52655269,1809.5,1809.3,8.97110155]
[1746455875759,5.52669393,1809.4,1809.3,8.97110155]
[1746455876081,5.52669393,1809.4,1809.3,3.89711016]
[1746455876284,5.52669393,1809.4,1809.3,3.0]
[1746455876583,5.52621837,1809.6,1809.4,3.0]
[1746455876788,5.52593425,1809.7,1809.5,6.79760155]
[1746455876953,5.52608311,1809.6,1809.5,9.79760155]
[1746455877159,5.52608311,1809.6,1809.5,8.97110155]
[1746455877668,5.52608311,1809.6,1809.5,3.0]
[1746455878233,5.52608311,1809.6,1809.5,3.421374]
[1746455878935,5.52608311,1809.6,1809.5,3.0]
[1746455879130,5.51676338,1809.6,1809.5,3.12590541]
[1746455880447,5.51676338,1809.6,1809.5,3.43849595]
[1746455880825,5.52590879,1809.7,1809.5,9.4095975]
[1746455881018,5.52608311,1809.6,1809.5,9.4095975]
[1746455882339,5.52500641,1810.0,1809.6,9.33392564]
[1746455882544,11.05014129,1810.0,1809.8,8.97110155]
[1746455882708,5.52516713,1809.9,1809.8,8.97110155]
[1746455883039,5.52500641,1810.0,1809.8,8.97110155]
[1746455883239,5.52516713,1809.9,1809.8,8.97110155]
[1746455883918,5.52516713,1809.9,1809.8,3.0]
[1746455886524,5.52590934,1809.7,1809.5,0.7218046]
[1746455886724,5.52608311,1809.6,1809.5,0.40921406]
[1746455886924,5.52608311,1809.6,1809.4,3.8116]
[1746455887141,5.52608311,1809.6,1809.5,8.97110155]
[1746455887343,5.5255972,1809.8,1809.5,8.97110155]
[1746455887542,5.5255972,1809.8,1809.6,3.05525405]
[1746455887746,5.52527023,1809.9,1809.8,3.0]
[1746455889053,5.52527023,1809.9,1809.8,3.7993]
[1746455891025,5.52439235,1810.2,1809.8,3.7993]
[1746455891243,5.52439235,1810.2,1809.9,5.97110155]
[1746455891446,11.04887477,1810.2,1810.0,0.05524198]
[1746455891631,11.04887477,1810.2,1810.0,0.41907681]
[1746455891632,5.52456943,1810.1,1810.0,0.41907681]
[1746455891847,5.52456943,1810.1,1809.9,5.97110155]
[1746455892017,5.52456943,1810.1,1809.9,6.94814171]
[1746455894078,5.52456943,1810.1,1810.0,0.11537736]
[1746455894567,5.52440267,1810.2,1810.0,0.11537736]
[1746455895367,5.52455665,1810.1,1810.0,0.11537736]
[1746455895874,5.52455665,1810.1,1810.0,0.53115764]
[1746455896034,5.52455665,1810.1,1810.0,1.18138356]
[1746455896955,5.52455665,1810.1,1810.0,0.53115764]
[1746455897850,5.52455665,1810.1,1810.0,0.11537736]
[1746455898469,5.52495426,1810.0,1809.8,8.6623]
[1746455899670,5.52516713,1809.9,1809.8,8.6623]
[1746455900050,5.52495426,1810.0,1809.8,8.6623]
[1746455900371,5.52409451,1810.3,1810.0,3.0]
[1746455900583,5.52425146,1810.2,1810.1,9.02634101]
[1746455900736,5.52425146,1810.2,1810.1,8.97110155]
[1746455901285,5.52409451,1810.3,1810.1,8.97110155]
[1746455901581,5.52425146,1810.2,1810.1,8.97110155]
[1746455901880,5.52409451,1810.3,1810.1,9.86821171]
[1746455902182,5.52409451,1810.3,1810.1,9.92345042]
[1746455902484,5.52425146,1810.2,1810.1,9.86821171]
[1746455902776,5.52409451,1810.3,1810.1,9.86821171]
[1746455902980,5.52409451,1810.3,1810.1,10.68901171]
[1746455903185,11.04834494,1810.3,1810.1,10.68901171]
[1746455903481,5.52409451,1810.3,1810.1,10.68901171]
[1746455904104,5.52409451,1810.3,1810.2,1.06890117]
[1746455904283,5.52382576,1810.4,1810.2,20.28890117]
[1746455904453,5.52356391,1810.5,1810.3,22.19110155]
[1746455904646,5.52364118,1810.4,1810.3,25.19110155]
[1746455905048,5.52364118,1810.4,1810.3,19.22]
[1746455905886,5.52364118,1810.4,1810.3,22.43194124]
[1746455906555,5.52364118,1810.4,1810.3,19.43194124]
[1746455907387,5.52356391,1810.5,1810.3,21.86143536]
[1746455908484,5.52320484,1810.6,1810.3,21.86143536]
[1746455908688,5.52320484,1810.6,1810.5,6.21194124]
[1746455908989,5.52162028,1811.1,1810.5,6.21194124]
[1746455908990,5.52260871,1810.8,1810.6,9.9332]
[1746455909308,5.52260871,1810.8,1810.7,12.35194124]
[1746455909582,0.3224,1811.1,1810.8,3.0]
[1746455909792,5.52211607,1810.9,1810.8,3.0]
[1746455910166,5.52211607,1810.9,1810.8,19.63278724]
[1746455911071,0.31007037,1810.9,1810.8,19.63278724]
[1746455911395,5.83218644,1810.9,1810.8,19.22]
[1746455911895,6.15458644,1810.9,1810.8,19.22]
[1746455912057,6.15458644,1810.9,1810.8,16.22]
[1746455912261,7.23901288,1810.9,1810.8,6.14]
[1746455914288,7.23901288,1810.9,1810.3,5.42949412]
[1746455914289,5.84482102,1810.8,1810.7,6.14]
[1746455914898,6.15489139,1810.8,1810.7,6.14]
[1746455915681,5.84573609,1810.5,1810.4,6.14]
[1746455916008,5.5239463,1810.3,1810.2,3.0]
[1746455916209,5.5239463,1810.3,1810.2,9.14]
[1746455917415,5.5239463,1810.3,1810.2,11.5482]
[1746455918004,5.5239463,1810.3,1810.2,5.4082]
[1746455918210,5.5239463,1810.3,1810.2,3.0]
[1746455918800,11.04765461,1810.4,1810.2,3.0]
[1746455918972,5.52377371,1810.4,1810.2,9.72198113]
[1746455919177,5.52377371,1810.4,1810.2,3.7773]
[1746455919419,5.5239463,1810.3,1810.2,3.7773]
[1746455919803,5.5239463,1810.3,1810.2,4.68307346]
[1746455921022,5.52470227,1810.1,1809.9,5.94468113]
[1746455921315,5.52470227,1810.1,1809.9,5.99992703]
[1746455921499,5.52446199,1810.2,1810.0,0.7705]
[1746455921683,5.52413275,1810.3,1810.1,5.94468113]
[1746455921883,5.52413275,1810.3,1810.2,0.59446811]
[1746455922137,1.08442644,1810.9,1810.3,0.7705]
[1746455922283,0.4107768,1811.2,1810.8,5.94468113]
[1746455922491,0.4107768,1811.2,1811.1,5.94468113]
[1746455922787,0.4107768,1811.2,1811.1,9.71518113]
[1746455923028,0.4107768,1811.2,1811.1,11.24439882]
[1746455923385,0.4107768,1811.2,1811.1,11.66557534]
[1746455923612,0.4107768,1811.2,1811.1,15.75607534]
[1746455924095,0.4107768,1811.2,1811.1,15.91205561]
[1746455926229,0.4107768,1811.2,1811.1,5.10637448]
[1746455926518,0.4107768,1811.2,1811.1,8.45515679]
[1746455927019,0.4107768,1811.2,1811.1,8.5103663]
[1746455927498,0.4107768,1811.2,1811.1,8.45515679]
[1746455927701,0.4107768,1811.2,1811.1,20.70394418]
[1746455929535,0.4107768,1811.2,1811.1,20.54796391]
[1746455929738,0.4107768,1811.2,1811.1,23.15491867]
[1746455931323,5.51921763,1811.9,1811.5,5.52017724]
[1746455931536,5.84132549,1812.0,1811.6,5.51985813]
[1746455931942,5.84132549,1812.0,1811.6,5.57502214]
[1746455932131,11.36035203,1812.0,1811.6,7.15949911]
[1746455932448,5.84132549,1812.0,1811.6,7.15946245]
[1746455932651,5.84132549,1812.0,1811.6,1.63967033]
[1746455932844,5.84131818,1812.0,1811.6,1.63967033]
[1746455933020,5.51926636,1811.9,1811.6,1.63967033]
[1746455933220,5.51939465,1811.8,1811.6,1.63967033]
[1746455933521,5.51906838,1811.9,1811.6,1.63967033]
[1746455933730,5.51949108,1811.8,1811.6,2.05677068]
[1746455934136,5.51967765,1811.7,1811.6,5.29410035]
[1746455934538,5.51957313,1811.8,1811.6,5.29410035]
[1746455934735,5.51916941,1811.9,1811.6,5.29410035]
[1746455935329,5.51937405,1811.8,1811.6,5.29410035]
[1746455935659,5.51916941,1811.9,1811.6,5.29410035]
[1746455936042,5.84128564,1812.0,1811.6,12.56901763]
[1746455936829,5.51909537,1811.9,1811.6,7.04905808]
[1746455937328,5.51962968,1811.8,1811.6,5.29310035]
[1746455937859,5.51923905,1811.9,1811.7,0.7907]
[1746455938078,0.3224,1812.1,1811.7,0.7907]
[1746455938388,5.51876379,1812.0,1811.7,0.7907]
[1746455938584,11.03779671,1812.0,1811.7,0.7907]
[1746455938785,5.51862751,1812.1,1811.7,12.31011832]
[1746455938988,5.51862751,1812.1,1811.7,13.41529115]
[1746455938989,5.51878359,1812.0,1811.7,13.41529115]
[1746455939163,5.51878359,1812.0,1811.7,7.89574453]
[1746455940049,5.51878359,1812.0,1811.7,13.47054353]
[1746455940249,5.51865908,1812.1,1811.7,13.41535478]
[1746455940484,5.51865908,1812.1,1811.8,0.05518866]
[1746455940874,5.51865908,1812.1,1811.9,5.94468113]
[1746455941079,5.51865908,1812.1,1812.0,4.876]
[1746455941469,5.51827027,1812.2,1812.0,4.876]
[1746455941796,5.51845924,1812.1,1812.0,4.876]
[1746455942665,0.3224,1812.1,1811.7,3.7907]
[1746455942865,5.51894733,1812.0,1811.9,4.876]
[1746455943099,5.51859068,1812.1,1811.9,4.876]
[1746455943309,5.5181719,1812.2,1812.0,3.0]
[1746455943505,5.51774034,1812.4,1812.1,5.99986342]
[1746455943801,5.51793845,1812.3,1812.1,5.94468113]
[1746455944363,5.51807593,1812.3,1812.1,5.94468113]
[1746455944965,5.51807593,1812.3,1812.1,6.91769924]
[1746455945394,5.51815472,1812.2,1812.1,6.91769924]
[1746455945819,11.03616459,1812.3,1812.1,6.91769924]
[1746455946011,5.51772675,1812.4,1812.1,6.91769924]
[1746455946218,5.51796848,1812.3,1812.1,6.91769924]
[1746455946415,5.51796848,1812.3,1812.2,0.69176992]
[1746455947209,5.51785024,1812.3,1812.2,1.10747755]
[1746455947510,5.51780528,1812.4,1812.2,1.10747755]
[1746455947718,5.51785024,1812.3,1812.2,1.10747755]
[1746455948213,5.51785024,1812.3,1812.2,0.41570763]
[1746455948418,5.51785024,1812.3,1812.2,4.875]
[1746455950316,5.51770887,1812.4,1812.2,4.875]
[1746455950493,5.51778276,1812.4,1812.2,4.875]
[1746455950694,5.51785024,1812.3,1812.2,4.875]
[1746455951193,5.51778276,1812.4,1812.2,4.875]
[1746455951394,0.4107768,1813.0,1812.4,0.7583]
[1746455951592,0.4107768,1813.0,1812.3,8.94468113]
[1746455951593,0.4107768,1813.0,1812.8,6.70298113]
[1746455951795,0.4107768,1813.0,1812.8,12.27429805]
[1746455952022,0.4107768,1813.0,1812.9,9.74345385]
[1746455952198,0.4107768,1813.0,1812.9,10.56395385]
[1746455952800,0.4107768,1813.0,1812.9,5.04792981]
[1746455953516,0.4107768,1813.0,1812.9,5.10308094]
[1746455954124,0.4107768,1813.0,1812.9,10.61910498]
[1746455954433,0.4107768,1813.0,1812.9,10.56395385]
[1746455954840,0.4107768,1813.0,1812.9,5.04792981]
[1746455955345,5.9264966,1813.0,1812.9,5.04792981]
[1746455955506,0.4107768,1813.0,1812.9,5.04792981]
[1746455955907,5.9264966,1813.0,1812.9,5.04792981]
[1746455956131,0.4107768,1813.0,1812.9,5.04792981]
[1746455956634,0.4107768,1813.0,1812.9,5.45965579]
[1746455956933,5.9264966,1813.0,1812.9,5.45965579]
[1746455957142,0.4107768,1813.0,1812.9,5.45965579]
[1746455957438,5.9264966,1813.0,1812.9,5.45965579]
[1746455957742,5.36916368,1813.0,1812.9,5.45965579]
[1746455958238,5.36916368,1813.0,1812.9,4.63915579]
[1746455958444,5.36916368,1813.0,1812.9,0.41172598]
[1746455958740,5.51632833,1812.8,1812.7,3.8016]
[1746455958906,5.51614164,1812.9,1812.7,3.8016]
[1746455959337,5.51632833,1812.8,1812.7,3.8016]
[1746455960044,5.51632833,1812.8,1812.7,4.21920915]
[1746455960244,5.51632833,1812.8,1812.7,5.72299818]
[1746455960625,5.51632833,1812.8,1812.7,4.92139818]
[1746455960942,5.51632833,1812.8,1812.7,3.41760915]
[1746455962917,5.51632833,1812.8,1812.6,4.874]
[1746455962918,5.51663264,1812.7,1812.6,4.874]
[1746455963118,0.3224,1812.9,1812.3,11.62188113]
[1746455963320,5.51709814,1812.6,1812.5,5.94468113]
[1746455963543,5.51709814,1812.6,1812.5,6.35843274]
[1746455963725,5.51685949,1812.7,1812.5,6.99427601]
[1746455963943,11.03379382,1812.7,1812.5,6.99427601]
[1746455964253,5.51685949,1812.7,1812.5,6.99427601]
[1746455964455,5.51693699,1812.6,1812.5,6.99427601]
[1746455965852,5.51693699,1812.6,1812.5,6.35843274]
[1746455967453,5.50986639,1812.6,1812.5,6.35843274]
[1746455967855,5.50986639,1812.6,1812.5,0.41375161]
[1746455968031,5.51724137,1812.5,1812.4,3.0]
[1746455968238,5.50986639,1812.6,1812.4,3.0]
[1746455968461,5.5168034,1812.7,1812.5,6.24468113]
[1746455968633,5.51693699,1812.6,1812.5,6.24468113]
[1746455970758,5.51724137,1812.5,1812.4,0.41023824]
[1746455971058,5.51724137,1812.5,1812.2,7.02664924]
[1746455971427,5.51724137,1812.5,1812.2,12.54476053]
[1746455971764,5.51724137,1812.5,1812.4,8.94468113]
[1746455973466,5.51724137,1812.5,1812.4,9.3645447]
[1746455974139,5.51693699,1812.6,1812.4,10.30099917]
[1746455974356,5.51724137,1812.5,1812.4,10.30099917]
[1746455974566,5.51693699,1812.6,1812.4,10.30099917]
[1746455975832,5.51693699,1812.6,1812.4,4.35631804]
[1746455976033,5.51693699,1812.6,1812.4,3.41986357]
[1746455976463,5.51675923,1812.7,1812.4,10.1510447]
[1746455976769,11.0336578,1812.7,1812.4,10.1510447]
[1746455976934,11.03362743,1812.7,1812.4,10.1510447]
[1746455977133,5.51724137,1812.5,1812.4,3.41986357]
[1746455978051,5.51724137,1812.5,1812.4,9.55986357]
[1746455978774,5.51707189,1812.6,1812.4,9.55986357]
[1746455979072,5.51661962,1812.8,1812.5,0.7871]
[1746455979248,5.51661962,1812.8,1812.6,5.99985079]
[1746455979771,5.51660921,1812.8,1812.6,5.94468113]
[1746455980067,5.51657128,1812.8,1812.5,0.7871]
[1746455980274,5.51681605,1812.7,1812.4,17.46853106]
[1746455980451,5.51657128,1812.8,1812.5,1.80201803]
[1746455980839,5.51657128,1812.8,1812.6,3.0]
[1746455981039,5.51657128,1812.8,1812.7,6.14]
[1746455981277,5.51614069,1812.9,1812.7,6.14]
[1746455981471,5.51614069,1812.9,1812.8,6.14]
[1746455981777,5.51583834,1813.0,1812.8,16.22]
[1746455983144,5.82605677,1812.9,1812.8,16.22]
[1746455984680,0.31003273,1812.9,1812.8,16.22]
[1746455985689,5.82605677,1812.9,1812.8,16.22]
[1746455987091,5.82605677,1812.9,1812.8,6.14]
[1746455989992,7.28264628,1812.9,1812.8,6.14]
[1746455990552,6.14845677,1812.9,1812.8,6.14]
[1746455996802,5.82605677,1812.9,1812.8,6.14]
[1746455997916,6.14845677,1812.9,1812.8,6.14]
[1746456001061,0.31003273,1812.9,1812.8,6.14]
[1746456001218,5.82605677,1812.9,1812.8,6.14]
[1746456001642,0.31003273,1812.9,1812.8,6.14]
[1746456002555,0.31003273,1812.9,1812.8,9.34322661]
[1746456002750,0.31003273,1812.9,1812.8,10.90967026]
[1746456003170,0.31003273,1812.9,1812.8,16.42599859]
[1746456003324,0.31003273,1812.9,1812.8,19.42599859]
[1746456004026,5.82605677,1812.9,1812.8,6.14]
[1746456008545,6.14845677,1812.9,1812.8,6.14]
[1746456009640,6.14845677,1812.9,1812.8,9.34322661]
[1746456009641,5.82605677,1812.9,1812.8,9.34322661]
[1746456010141,5.82605677,1812.9,1812.8,6.14]
[1746456012681,6.14845677,1812.9,1812.8,6.14]
[1746456012881,7.30737203,1812.9,1812.8,6.14]
[1746456014099,5.51693699,1812.6,1812.5,6.14]
[1746456017525,5.83933699,1812.6,1812.5,6.14]
[1746456020906,5.83964137,1812.5,1812.4,6.14]
[1746456021086,5.51754579,1812.4,1812.3,6.14]
[1746456025518,5.8275187,1812.4,1812.3,6.14]
[1746456028948,6.1499187,1812.4,1812.3,6.14]
[1746456031764,6.1499187,1812.4,1812.3,6.36786156]
[1746456032089,6.1499187,1812.4,1812.3,0.22786156]
[1746456032223,6.99423471,1812.4,1812.3,0.22786156]
[1746456032424,5.8275187,1812.4,1812.3,0.22786156]
[1746456033734,6.1499187,1812.4,1812.3,0.22786156]
[1746456033928,5.8275187,1812.4,1812.3,0.22786156]
[1746456038146,5.8275187,1812.4,1812.3,6.36786156]
[1746456039675,6.56664209,1812.4,1812.3,6.36786156]
[1746456041182,0.30997291,1812.4,1812.3,6.36786156]
[1746456041344,0.30997291,1812.4,1812.3,10.36368817]
[1746456041539,0.30997291,1812.4,1812.3,13.36368817]
[1746456041787,0.30997291,1812.4,1812.3,23.44368817]
[1746456042582,5.51740563,1812.5,1812.4,3.0]
[1746456042881,5.5168179,1812.7,1812.5,0.8021]
[1746456043181,0.31030382,1812.6,1812.5,7.41184259]
[1746456043855,0.31030382,1812.6,1812.5,13.55184259]
[1746456044060,5.51672785,1812.7,1812.5,13.77317043]
[1746456044455,5.51651085,1812.8,1812.6,0.8088]
[1746456044658,5.51651085,1812.8,1812.7,3.20322661]
[1746456044872,0.31018521,1812.8,1812.7,3.42393033]
[1746456045183,5.82651354,1812.8,1812.7,3.82513299]
[1746456045383,0.31018521,1812.8,1812.7,3.82513299]
[1746456045786,5.5160765,1812.9,1812.7,3.82513299]
[1746456045946,5.5160765,1812.9,1812.8,6.14]
[1746456046277,5.5160765,1812.9,1812.8,6.36053228]
[1746456046664,5.51551771,1813.1,1812.9,3.8178]
[1746456046845,5.51551771,1813.1,1812.9,7.02102661]
[1746456047044,5.5157198,1813.0,1812.9,3.8178]
[1746456047814,5.82552205,1813.0,1812.9,3.8178]
[1746456048018,5.82552205,1813.0,1812.9,3.0]
[1746456048190,5.51602404,1812.9,1812.8,16.22]
[1746456048379,5.51602404,1812.9,1812.8,18.23993266]
[1746456049319,5.82582629,1812.9,1812.8,18.23993266]
[1746456049615,5.82582629,1812.9,1812.8,16.22]
[1746456050008,5.82582629,1812.9,1812.8,6.14]
[1746456052089,5.51602404,1812.9,1812.8,6.14]
[1746456056702,5.5157198,1813.0,1812.8,6.14]
[1746456056910,5.51551105,1813.1,1812.9,0.7649]
[1746456057116,5.51551105,1813.1,1812.9,1.45539]
[1746456057117,5.5157198,1813.0,1812.9,1.45539]
[1746456057330,10.68399239,1813.4,1812.9,1.45539]
[1746456057625,5.5157198,1813.0,1812.9,11.53539]
[1746456057783,5.5157198,1813.0,1812.9,7.59539]
[1746456058725,5.5157198,1813.0,1812.9,6.83049]
[1746456059221,5.5157198,1813.0,1812.9,7.04623905]
[1746456059607,5.51554871,1813.1,1812.9,10.24946566]
[1746456059824,5.51554871,1813.1,1813.0,1.85004657]
[1746456060027,5.51554871,1813.1,1813.0,2.06562423]
[1746456060323,5.51554871,1813.1,1813.0,0.21557766]
[1746456061524,5.51532479,1813.2,1813.1,0.8256]
[1746456061699,5.5151114,1813.2,1813.1,0.8256]
[1746456061900,5.5151114,1813.2,1813.1,1.04100628]
[1746456062216,5.5151114,1813.2,1813.1,7.18100628]
[1746456063610,5.51480087,1813.4,1813.1,12.41033352]
[1746456063814,5.51474733,1813.4,1813.2,16.22]
[1746456064397,5.51474733,1813.4,1813.3,0.2137705]
[1746456065410,5.51433417,1813.5,1813.3,20.39089711]
[1746456065627,5.51450314,1813.4,1813.3,20.39089711]
[1746456065811,5.51450314,1813.4,1813.3,18.76820204]
[1746456066127,5.51433417,1813.5,1813.3,18.76820204]
[1746456066329,5.51402024,1813.6,1813.3,21.97142865]
[1746456066533,11.02751506,1813.7,1813.4,0.05513918]
[1746456066829,5.51390793,1813.6,1813.3,21.97142865]
[1746456067134,5.51390793,1813.6,1813.4,2.25228168]
[1746456067286,5.51419906,1813.5,1813.4,2.19714287]
[1746456067731,5.51450314,1813.4,1813.3,19.22]
[1746456069233,5.51419906,1813.5,1813.4,0.7562]
[1746456069747,5.51402035,1813.6,1813.4,0.7562]
[1746456069952,5.51419906,1813.5,1813.4,0.7562]
[1746456070610,5.51450314,1813.4,1813.3,19.22]
[1746456071036,5.51450314,1813.4,1813.3,9.14]
[1746456071809,5.51448105,1813.5,1813.3,9.14]
[1746456072010,5.51450314,1813.4,1813.3,9.14]
[1746456073137,5.83690314,1813.4,1813.3,6.14]
[1746456073333,7.28161546,1813.4,1813.3,6.14]
[1746456074116,7.28161546,1813.4,1813.3,6.34889023]
[1746456075449,6.1464926,1813.4,1813.3,6.34889023]
[1746456077257,5.8240926,1813.4,1813.3,6.34889023]
[1746456078959,0.30958946,1813.4,1813.3,7.16469023]
[1746456079130,5.51432548,1813.5,1813.3,7.16469023]
[1746456079658,5.51450314,1813.4,1813.3,7.16469023]
[1746456080058,5.51432548,1813.5,1813.3,7.16469023]
[1746456080362,5.51450314,1813.4,1813.3,7.16469023]
[1746456086186,5.82460579,1813.4,1813.3,7.16469023]
[1746456086976,11.0288274,1813.5,1813.3,7.16469023]
[1746456087182,5.51450314,1813.4,1813.3,7.16469023]
[1746456087353,5.51450314,1813.4,1813.3,6.34889023]
[1746456087895,11.02877339,1813.5,1813.3,6.34889023]
[1746456088189,5.51432548,1813.5,1813.4,0.7984]
[1746456088349,11.02821042,1813.6,1813.4,0.7984]
[1746456088537,5.51384316,1813.7,1813.4,1.0071751]
[1746456088743,5.51413364,1813.6,1813.4,1.0071751]
[1746456089185,5.51413364,1813.6,1813.5,6.14]
[1746456089389,5.51413364,1813.6,1813.5,10.05794412]
[1746456089390,0.31027965,1813.6,1813.5,10.05794412]
[1746456089567,0.31027965,1813.6,1813.5,10.26654792]
[1746456089884,5.82417466,1813.6,1813.5,6.3486038]
[1746456092599,0.31027965,1813.6,1813.5,6.3486038]
[1746456093160,5.82417466,1813.6,1813.5,6.3486038]
[1746456093692,0.31027965,1813.6,1813.5,6.3486038]
[1746456094082,0.31027965,1813.6,1813.5,28.96296461]
[1746456094274,0.31027965,1813.6,1813.5,31.80412593]
[1746456094475,11.02638568,1813.9,1813.6,3.0]
[1746456094710,5.51331007,1813.8,1813.7,3.40997079]
[1746456095191,5.82349869,1813.8,1813.7,3.40997079]
[1746456095365,5.82349869,1813.8,1813.7,0.20674418]
[1746456095761,7.27956115,1813.8,1813.7,0.20674418]
[1746456096271,5.51389501,1813.6,1813.5,16.22]
[1746456096499,5.82408363,1813.6,1813.5,16.22]
[1746456098068,5.82408363,1813.6,1813.5,6.14]
[1746456102581,5.51419906,1813.5,1813.4,6.14]
[1746456102785,5.82438768,1813.5,1813.4,6.14]
[1746456102981,6.14678768,1813.5,1813.4,6.14]
[1746456103193,5.5151114,1813.2,1813.1,6.14]
[1746456103584,5.82530002,1813.2,1813.1,6.14]
[1746456104208,5.82530002,1813.2,1813.1,6.33234955]
[1746456105116,6.14770002,1813.2,1813.1,6.33234955]
[1746456105987,5.82530002,1813.2,1813.1,6.33234955]
[1746456108879,0.31018862,1813.2,1813.1,6.33234955]
[1746456109076,0.31018862,1813.2,1813.1,6.96558451]
[1746456109508,5.5151114,1813.2,1813.1,6.96558451]
[1746456109711,5.51500535,1813.3,1813.1,6.96558451]
[1746456110109,5.51500535,1813.3,1813.2,6.14]
[1746456110409,5.8249824,1813.3,1813.2,6.33279639]
[1746456111416,0.30997705,1813.3,1813.2,11.02644095]
[1746456111787,5.8247843,1813.3,1813.2,11.02644095]
[1746456111989,5.51480725,1813.3,1813.2,11.02644095]
[1746456113588,5.51480725,1813.3,1813.2,6.33279639]
[1746456114709,0.30992704,1813.3,1813.2,6.33279639]
[1746456115478,5.51472008,1813.4,1813.2,6.33279639]
[1746456115989,5.51472008,1813.4,1813.3,6.14]
[1746456116419,5.82462373,1813.4,1813.3,6.3337488]
[1746456121110,0.30990365,1813.4,1813.3,6.3337488]
[1746456121292,5.51435529,1813.5,1813.3,6.3337488]
[1746456122011,11.02879391,1813.5,1813.3,6.3337488]
[1746456122179,5.51381111,1813.7,1813.3,10.30740729]
[1746456122397,5.51419906,1813.5,1813.4,6.14]
[1746456122592,5.51409332,1813.6,1813.4,6.14]
[1746456122797,5.51409332,1813.6,1813.4,6.33250973]
[1746456123304,5.51409332,1813.6,1813.5,0.7566]
[1746456123629,5.51340915,1813.8,1813.5,7.7978494]
[1746456123834,5.51340915,1813.8,1813.5,16.51523656]
[1746456124038,0.30990575,1813.7,1813.5,16.51523656]
[1746456124445,0.30990575,1813.7,1813.6,6.14]
[1746456124752,0.30990575,1813.7,1813.6,14.90012983]
[1746456124895,0.30990575,1813.7,1813.6,17.39518345]
[1746456125098,5.51316119,1813.9,1813.6,17.39518345]
[1746456126838,5.51316119,1813.9,1813.6,11.88128844]
[1746456127342,5.51316119,1813.9,1813.6,17.3951531]
[1746456128140,5.51328702,1813.8,1813.7,6.14]
[1746456128323,5.51316119,1813.9,1813.7,7.5190572]
[1746456133144,5.51316119,1813.9,1813.7,6.33092836]
[1746456133448,5.83568702,1813.8,1813.7,6.33092836]
[1746456133750,6.14521083,1813.8,1813.7,6.33092836]
[1746456134253,6.14521083,1813.8,1813.7,0.19092836]
[1746456135860,5.51419906,1813.5,1813.4,6.14]
[1746456136311,5.51480725,1813.3,1813.2,6.14]
[1746456136507,5.5151114,1813.2,1813.1,6.14]
[1746456139531,5.5150201,1813.3,1813.1,6.14]
[1746456139933,5.83707132,1813.4,1813.1,6.14]
[1746456140136,5.51467132,1813.4,1813.1,6.8935]
[1746456140449,0.3224,1813.6,1813.2,14.85829127]
[1746456140450,5.51406776,1813.6,1813.2,14.85829127]
[1746456140659,5.51406776,1813.6,1813.3,0.7535]
[1746456140815,5.83570454,1813.8,1813.3,0.7535]
[1746456140816,5.51450314,1813.4,1813.3,0.7535]
[1746456141015,5.51450314,1813.4,1813.2,6.14]
[1746456141258,5.51480725,1813.3,1813.2,9.14]
[1746456141549,5.51450314,1813.4,1813.2,9.14]
[1746456141960,5.51480725,1813.3,1813.2,9.14]
[1746456142553,5.51480725,1813.3,1813.2,6.14]
[1746456143754,5.82457511,1813.3,1813.2,6.14]
[1746456146143,5.82457511,1813.3,1813.1,6.14]
[1746456146937,11.33962204,1813.3,1813.1,6.14]
[1746456147254,5.51480725,1813.3,1813.1,6.14]
[1746456147454,11.02988683,1813.3,1813.1,6.14]
[1746456147653,5.51480725,1813.3,1813.1,6.14]
[1746456148190,5.51467029,1813.4,1813.1,10.33925661]
[1746456148334,5.51467029,1813.4,1813.1,10.39441156]
[1746456148657,5.51435833,1813.5,1813.2,0.7693]
[1746456148893,11.02878368,1813.5,1813.2,0.7693]
[1746456149025,5.51480725,1813.3,1813.2,0.7693]
[1746456149361,5.51455157,1813.4,1813.3,0.19206294]
[1746456149563,5.51455157,1813.4,1813.2,7.10153428]
[1746456149769,5.51455157,1813.4,1813.3,0.19206294]
[1746456150338,5.51438461,1813.5,1813.3,0.19206294]
[1746456150339,5.51438461,1813.5,1813.3,3.39528955]
[1746456150542,5.51438461,1813.5,1813.3,4.4257485]
[1746456150869,5.51450314,1813.4,1813.3,4.4257485]
[1746456151971,5.51450314,1813.4,1813.3,3.39528955]
[1746456152152,5.51450314,1813.4,1813.3,0.19206294]
[1746456152675,5.82423278,1813.4,1813.3,0.19206294]
[1746456153053,6.14663278,1813.4,1813.3,0.19206294]
[1746456154484,5.82423278,1813.4,1813.3,0.19206294]
[1746456155259,5.82423278,1813.4,1813.3,6.33206294]